[Event "*** MasterClass Titled Tuesday Blitz"]
[Site "Chess.com"]
[Date "2017.08.01"]
[Round "1"]
[White "olomi007"]
[Black "stefanodinn"]
[Result "1-0"]
[WhiteElo "2477"]
[BlackElo "2179"]
[TimeControl "180+2"]
[EndTime "13:06:28 PDT"]
[Termination "olomi007 won on time"]

1. e4 {[%clk 0:03:01.9]} 1... c5 {[%clk 0:02:59.9]} 2. Nf3 {[%clk 0:03:02.4]}
2... d6 {[%clk 0:03:01.2]} 3. d4 {[%clk 0:03:03.6]} 3... cxd4 {[%clk 0:03:02.4]}
4. Nxd4 {[%clk 0:03:05.5]} 4... Nf6 {[%clk 0:03:03.7]} 5. Nc3 {[%clk 0:03:07.2]}
5... a6 {[%clk 0:03:05.1]} 6. Bg5 {[%clk 0:03:08.4]} 6... e6 {[%clk 0:03:06]} 7.
f4 {[%clk 0:03:09.1]} 7... Be7 {[%clk 0:03:03.8]} 8. Qf3 {[%clk 0:03:09.2]} 8...
Qc7 {[%clk 0:03:05]} 9. O-O-O {[%clk 0:03:09.7]} 9... Nbd7 {[%clk 0:03:06]} 10.
g4 {[%clk 0:03:10.8]} 10... b5 {[%clk 0:03:06.2]} 11. Bxf6 {[%clk 0:03:11]}
11... Nxf6 {[%clk 0:03:07.1]} 12. g5 {[%clk 0:03:12.2]} 12... Nd7 {[%clk
0:03:08.2]} 13. f5 {[%clk 0:03:13]} 13... Bxg5+ {[%clk 0:03:07.5]} 14. Kb1
{[%clk 0:03:13.5]} 14... Ne5 {[%clk 0:03:08.4]} 15. Qh5 {[%clk 0:03:11.4]} 15...
Qe7 {[%clk 0:03:08.9]} 16. fxe6 {[%clk 0:03:05.9]} 16... g6 {[%clk 0:03:06.9]}
17. exf7+ {[%clk 0:03:03.5]} 17... Kxf7 {[%clk 0:03:07.8]} 18. Qe2 {[%clk
0:03:03.1]} 18... Bg4 {[%clk 0:03:07]} 19. Qf2+ {[%clk 0:03:02.1]} 19... Qf6
{[%clk 0:03:08.1]} 20. Qxf6+ {[%clk 0:02:48.5]} 20... Bxf6 {[%clk 0:03:09]} 21.
Be2 {[%clk 0:02:49.6]} 21... Bc8 {[%clk 0:03:08.8]} 22. Nd5 {[%clk 0:02:47.9]}
22... Bd8 {[%clk 0:02:56.6]} 23. Nf3 {[%clk 0:02:38.3]} 23... Kg7 {[%clk
0:02:38]} 24. Nxe5 {[%clk 0:02:33.2]} 24... dxe5 {[%clk 0:02:37.3]} 25. a4
{[%clk 0:02:25.2]} 25... bxa4 {[%clk 0:02:11.7]} 26. c4 {[%clk 0:02:25.7]} 26...
Rb8 {[%clk 0:01:57.6]} 27. Ka2 {[%clk 0:02:26.1]} 27... Rf8 {[%clk 0:01:39.2]}
28. Rhf1 {[%clk 0:02:25.3]} 28... Rxf1 {[%clk 0:01:37.3]} 29. Bxf1 {[%clk
0:02:25.6]} 29... Bg4 {[%clk 0:01:31.2]} 30. Rd3 {[%clk 0:02:22.1]} 30... Bg5
{[%clk 0:00:49.6]} 31. c5 {[%clk 0:02:18.2]} 31... Bc1 {[%clk 0:00:35.1]} 32. b3
{[%clk 0:02:18.9]} 32... Kf7 {[%clk 0:00:14]} 33. c6 {[%clk 0:02:17]} 33... Rc8
{[%clk 0:00:05.1]} 34. Rc3 {[%clk 0:02:14]} 34... Bd2 {[%clk 0:00:06.2]} 35. Rc2
{[%clk 0:02:14.4]} 1-0

[Event "*** MasterClass Titled Tuesday Blitz"]
[Site "Chess.com"]
[Date "2017.08.01"]
[Round "1"]
[White "MMSANCHEZ"]
[Black "GMKrikor"]
[Result "1-0"]
[WhiteElo "2291"]
[BlackElo "2520"]
[TimeControl "180+2"]
[EndTime "13:06:41 PDT"]
[Termination "MMSANCHEZ won by resignation"]

1. d4 {[%clk 0:03:01.9]} 1... Nf6 {[%clk 0:03:00.7]} 2. Nf3 {[%clk 0:03:02.4]}
2... e6 {[%clk 0:03:01.1]} 3. e3 {[%clk 0:03:03.7]} 3... b6 {[%clk 0:02:56.6]}
4. Bd3 {[%clk 0:03:03.9]} 4... Bb7 {[%clk 0:02:57.9]} 5. O-O {[%clk 0:03:04.8]}
5... d5 {[%clk 0:02:58.1]} 6. Nbd2 {[%clk 0:03:05.8]} 6... c5 {[%clk 0:02:48.9]}
7. c3 {[%clk 0:03:05.1]} 7... Bd6 {[%clk 0:02:40]} 8. Ne5 {[%clk 0:03:06]} 8...
O-O {[%clk 0:02:32.6]} 9. f4 {[%clk 0:03:06.6]} 9... Ne4 {[%clk 0:02:21.8]} 10.
Qf3 {[%clk 0:03:07]} 10... f5 {[%clk 0:02:17.9]} 11. Qh3 {[%clk 0:03:01.9]}
11... Nd7 {[%clk 0:01:57.6]} 12. Ndf3 {[%clk 0:03:02]} 12... Ndf6 {[%clk
0:01:41.2]} 13. Ng5 {[%clk 0:02:56.5]} 13... Nxg5 {[%clk 0:01:38.6]} 14. fxg5
{[%clk 0:02:57.5]} 14... Bxe5 {[%clk 0:01:11.3]} 15. gxf6 {[%clk 0:02:42.9]}
15... Bxf6 {[%clk 0:01:12]} 16. Bd2 {[%clk 0:02:44.1]} 16... Qe7 {[%clk
0:01:10.1]} 17. Be1 {[%clk 0:02:40.1]} 17... g6 {[%clk 0:01:10.3]} 18. Bg3
{[%clk 0:02:41]} 18... e5 {[%clk 0:01:05]} 19. dxe5 {[%clk 0:02:36.6]} 19...
Bxe5 {[%clk 0:01:06.4]} 20. Bh4 {[%clk 0:02:32.9]} 20... Bf6 {[%clk 0:01:04.4]}
21. Bxf6 {[%clk 0:02:31.3]} 21... Rxf6 {[%clk 0:01:05.6]} 22. Rae1 {[%clk
0:02:31.2]} 22... Re8 {[%clk 0:01:06.3]} 23. Qh6 {[%clk 0:02:08.5]} 23... Re6
{[%clk 0:01:02.3]} 24. Rf3 {[%clk 0:02:09]} 24... d4 {[%clk 0:00:49.9]} 25. Rh3
{[%clk 0:02:09.8]} 25... dxe3 {[%clk 0:00:36.8]} 26. Bc4 {[%clk 0:02:10.4]}
26... Qg7 {[%clk 0:00:20.2]} 27. Qxe3 {[%clk 0:01:59.9]} 27... Bc8 {[%clk
0:00:18.2]} 28. Qd3 {[%clk 0:01:41.1]} 28... Kh8 {[%clk 0:00:12.9]} 29. Bxe6
{[%clk 0:01:41.8]} 29... Bxe6 {[%clk 0:00:14.2]} 30. Rhe3 {[%clk 0:01:42.6]}
30... Qg8 {[%clk 0:00:03.7]} 31. Qe2 {[%clk 0:01:42.9]} 1-0

[Event "*** MasterClass Titled Tuesday Blitz"]
[Site "Chess.com"]
[Date "2017.08.01"]
[Round "1"]
[White "grzechu96"]
[Black "axlbvRR"]
[Result "1-0"]
[WhiteElo "2407"]
[BlackElo "1986"]
[TimeControl "180+2"]
[EndTime "13:06:43 PDT"]
[Termination "grzechu96 won on time"]

1. e4 {[%clk 0:03:01.9]} 1... c5 {[%clk 0:02:59.7]} 2. Nf3 {[%clk 0:03:02.9]}
2... d6 {[%clk 0:03:01]} 3. d4 {[%clk 0:03:04]} 3... cxd4 {[%clk 0:03:02.9]} 4.
Nxd4 {[%clk 0:03:05.9]} 4... Nf6 {[%clk 0:03:04.4]} 5. Nc3 {[%clk 0:03:07.4]}
5... g6 {[%clk 0:03:05.6]} 6. Be3 {[%clk 0:03:08.4]} 6... Bg7 {[%clk 0:03:06.7]}
7. f3 {[%clk 0:03:09.8]} 7... O-O {[%clk 0:03:08.1]} 8. Qd2 {[%clk 0:03:11.4]}
8... Nc6 {[%clk 0:03:09.5]} 9. O-O-O {[%clk 0:03:12.7]} 9... Bd7 {[%clk
0:03:11]} 10. h4 {[%clk 0:03:07.6]} 10... Ne5 {[%clk 0:02:29.7]} 11. Bh6 {[%clk
0:02:51.2]} 11... Rc8 {[%clk 0:02:24.9]} 12. h5 {[%clk 0:02:45.8]} 12... Nc4
{[%clk 0:02:21.6]} 13. Bxc4 {[%clk 0:02:46.1]} 13... Rxc4 {[%clk 0:02:22.1]} 14.
hxg6 {[%clk 0:02:44.2]} 14... fxg6 {[%clk 0:02:21.3]} 15. Nd5 {[%clk 0:02:28.8]}
15... Rf7 {[%clk 0:01:47.8]} 16. Bxg7 {[%clk 0:02:28.6]} 16... Rxg7 {[%clk
0:01:37.4]} 17. Nxf6+ {[%clk 0:02:29.4]} 17... exf6 {[%clk 0:01:37.8]} 18. Nf5
{[%clk 0:02:27.2]} 18... gxf5 {[%clk 0:01:00.8]} 19. Qd5+ {[%clk 0:02:28]} 19...
Kh8 {[%clk 0:00:58.7]} 20. Qxc4 {[%clk 0:02:28.6]} 20... Qe7 {[%clk 0:00:52.3]}
21. Qd4 {[%clk 0:02:07.9]} 21... fxe4 {[%clk 0:00:51.4]} 22. Qxe4 {[%clk
0:02:05.4]} 22... Qf8 {[%clk 0:00:48]} 23. g4 {[%clk 0:02:03.7]} 23... Bc6
{[%clk 0:00:48.3]} 24. Qf4 {[%clk 0:02:04.1]} 24... Rf7 {[%clk 0:00:42.6]} 25.
Rxd6 {[%clk 0:01:54]} 25... Bxf3 {[%clk 0:00:30.9]} 26. Rf1 {[%clk 0:01:54.7]}
26... Bxg4 {[%clk 0:00:26.9]} 27. Rxf6 {[%clk 0:01:55.8]} 27... Bh5 {[%clk
0:00:24.7]} 28. Rxf7 {[%clk 0:01:55.6]} 28... Bxf7 {[%clk 0:00:24.9]} 29. Qxf7
{[%clk 0:01:56.4]} 29... Qh6+ {[%clk 0:00:26.8]} 30. Kb1 {[%clk 0:01:56.2]} 1-0

[Event "*** MasterClass Titled Tuesday Blitz"]
[Site "Chess.com"]
[Date "2017.08.01"]
[Round "1"]
[White "IamSchrodingersCat"]
[Black "Alohamora11"]
[Result "1-0"]
[WhiteElo "2422"]
[BlackElo "2098"]
[TimeControl "180+2"]
[EndTime "13:06:46 PDT"]
[Termination "IamSchrodingersCat won by checkmate"]

1. e4 {[%clk 0:03:02]} 1... c5 {[%clk 0:03:00.9]} 2. Nf3 {[%clk 0:03:02.5]} 2...
g6 {[%clk 0:03:01.5]} 3. d4 {[%clk 0:03:03.3]} 3... cxd4 {[%clk 0:03:02.3]} 4.
Nxd4 {[%clk 0:03:05.2]} 4... Bg7 {[%clk 0:03:02.9]} 5. Nc3 {[%clk 0:03:06.6]}
5... Nc6 {[%clk 0:03:03.8]} 6. Be3 {[%clk 0:03:07.5]} 6... Nf6 {[%clk
0:03:05.2]} 7. Nxc6 {[%clk 0:03:08.3]} 7... bxc6 {[%clk 0:03:03.5]} 8. e5 {[%clk
0:03:09.3]} 8... Ng8 {[%clk 0:02:53.2]} 9. Bd4 {[%clk 0:03:09.8]} 9... Nh6
{[%clk 0:02:50.1]} 10. e6 {[%clk 0:03:09.7]} 10... O-O {[%clk 0:02:47]} 11. Bxg7
{[%clk 0:03:09]} 11... Kxg7 {[%clk 0:02:48.9]} 12. exd7 {[%clk 0:02:56.2]} 12...
Bxd7 {[%clk 0:02:36.9]} 13. Qd4+ {[%clk 0:02:50.9]} 13... Kg8 {[%clk 0:02:37.8]}
14. O-O-O {[%clk 0:02:51.1]} 14... Bg4 {[%clk 0:02:35.9]} 15. Qxd8 {[%clk
0:02:44.2]} 15... Raxd8 {[%clk 0:02:37.8]} 16. f3 {[%clk 0:02:43.6]} 16... Be6
{[%clk 0:02:29.6]} 17. Bd3 {[%clk 0:02:34.5]} 17... Nf5 {[%clk 0:02:28.8]} 18.
Bxf5 {[%clk 0:02:19.2]} 18... Bxf5 {[%clk 0:02:29.2]} 19. Rhe1 {[%clk
0:02:19.7]} 19... Rxd1+ {[%clk 0:02:26.5]} 20. Rxd1 {[%clk 0:02:13.8]} 20... Kg7
{[%clk 0:02:26.2]} 21. Ne2 {[%clk 0:01:57]} 21... c5 {[%clk 0:02:22.8]} 22. g4
{[%clk 0:01:44.6]} 22... Be6 {[%clk 0:02:20.6]} 23. Nf4 {[%clk 0:01:46.2]} 23...
Bc8 {[%clk 0:02:08.1]} 24. Nd3 {[%clk 0:01:23.8]} 24... Bb7 {[%clk 0:02:03.1]}
25. Nxc5 {[%clk 0:01:18.4]} 25... Bxf3 {[%clk 0:02:00.1]} 26. Rd7 {[%clk
0:01:19.6]} 26... Bxg4 {[%clk 0:01:56.6]} 27. Rxe7 {[%clk 0:01:14.6]} 27... a5
{[%clk 0:01:50.5]} 28. c4 {[%clk 0:01:07.1]} 28... Kh6 {[%clk 0:01:49.4]} 29. a3
{[%clk 0:01:05.1]} 29... f5 {[%clk 0:01:48.2]} 30. h4 {[%clk 0:00:53.1]} 30...
f4 {[%clk 0:01:48.7]} 31. Ne4 {[%clk 0:00:48.4]} 31... f3 {[%clk 0:01:46.9]} 32.
Ng5 {[%clk 0:00:44.1]} 32... Rh8 {[%clk 0:01:38.4]} 33. Nf7+ {[%clk 0:00:44]}
33... Kh5 {[%clk 0:01:39.1]} 34. Nxh8 {[%clk 0:00:45.5]} 34... f2 {[%clk
0:01:39.6]} 35. Rxh7# {[%clk 0:00:46.2]} 1-0

[Event "*** MasterClass Titled Tuesday Blitz"]
[Site "Chess.com"]
[Date "2017.08.01"]
[Round "1"]
[White "Vect0rs"]
[Black "Rsnr"]
[Result "0-1"]
[WhiteElo "2254"]
[BlackElo "2517"]
[TimeControl "180+2"]
[EndTime "13:06:48 PDT"]
[Termination "Rsnr won by checkmate"]

1. d4 {[%clk 0:03:01.1]} 1... d5 {[%clk 0:03:00.8]} 2. c4 {[%clk 0:03:00.1]}
2... c6 {[%clk 0:03:02.1]} 3. Nf3 {[%clk 0:02:59.1]} 3... Nf6 {[%clk 0:03:03.3]}
4. e3 {[%clk 0:02:58.7]} 4... Bg4 {[%clk 0:03:04]} 5. h3 {[%clk 0:02:58.1]} 5...
Bh5 {[%clk 0:03:04.8]} 6. g4 {[%clk 0:02:59.1]} 6... Bg6 {[%clk 0:03:06.1]} 7.
Ne5 {[%clk 0:02:57.8]} 7... Nbd7 {[%clk 0:03:06.4]} 8. Nxg6 {[%clk 0:02:57.6]}
8... hxg6 {[%clk 0:03:07.4]} 9. Nc3 {[%clk 0:02:50.3]} 9... e6 {[%clk
0:03:07.7]} 10. Bg2 {[%clk 0:02:50.8]} 10... Bb4 {[%clk 0:03:08.8]} 11. Bd2
{[%clk 0:02:51.2]} 11... Bxc3 {[%clk 0:03:09.4]} 12. Bxc3 {[%clk 0:02:48.2]}
12... Ne4 {[%clk 0:03:11.2]} 13. O-O {[%clk 0:02:42.4]} 13... Qc7 {[%clk
0:03:01]} 14. Rc1 {[%clk 0:02:39.5]} 14... Nxc3 {[%clk 0:02:49.9]} 15. Rxc3
{[%clk 0:02:38.6]} 15... Nf6 {[%clk 0:02:42.1]} 16. cxd5 {[%clk 0:02:28]} 16...
exd5 {[%clk 0:02:44]} 17. Qf3 {[%clk 0:02:01.6]} 17... Ne4 {[%clk 0:02:40.7]}
18. Rc2 {[%clk 0:01:58.3]} 18... O-O-O {[%clk 0:02:36.5]} 19. Qf4 {[%clk
0:01:26.8]} 19... Qxf4 {[%clk 0:02:32.8]} 20. exf4 {[%clk 0:01:28.7]} 20... f5
{[%clk 0:02:34.7]} 21. Bxe4 {[%clk 0:01:26.2]} 21... dxe4 {[%clk 0:02:35.2]} 22.
f3 {[%clk 0:01:26.1]} 22... Rxd4 {[%clk 0:02:35.9]} 23. fxe4 {[%clk 0:01:24.9]}
23... Rxe4 {[%clk 0:02:37.3]} 24. Rf3 {[%clk 0:01:21.6]} 24... Kc7 {[%clk
0:02:20.7]} 25. Kg2 {[%clk 0:01:16.6]} 25... Rhe8 {[%clk 0:02:20.9]} 26. Kg3
{[%clk 0:01:16.3]} 26... Re1 {[%clk 0:02:07.6]} 27. Kh4 {[%clk 0:01:12.5]} 27...
R8e6 {[%clk 0:02:09]} 28. Kg5 {[%clk 0:01:12.6]} 28... Rg1 {[%clk 0:02:07.7]}
29. Rc5 {[%clk 0:01:07.6]} 29... Kd6 {[%clk 0:01:57.4]} 30. Rc2 {[%clk
0:01:06.7]} 30... c5 {[%clk 0:01:54.5]} 31. Rd2+ {[%clk 0:01:07.6]} 31... Kc6
{[%clk 0:01:56.1]} 32. b3 {[%clk 0:01:08.9]} 32... b6 {[%clk 0:01:47.9]} 33.
Rfd3 {[%clk 0:01:10.2]} 33... a6 {[%clk 0:01:42.8]} 34. Rd8 {[%clk 0:01:10.7]}
34... Rg3 {[%clk 0:01:36.6]} 35. Rc8+ {[%clk 0:01:07.1]} 35... Kb5 {[%clk
0:01:36.6]} 36. Kh4 {[%clk 0:00:48.5]} 36... Ree3 {[%clk 0:01:33.5]} 37. Kg5
{[%clk 0:00:47.8]} 37... Rxh3 {[%clk 0:01:29.8]} 38. gxf5 {[%clk 0:00:46.2]}
38... Reg3# {[%clk 0:01:31.1]} 0-1

[Event "*** MasterClass Titled Tuesday Blitz"]
[Site "Chess.com"]
[Date "2017.08.01"]
[Round "1"]
[White "lucasmito"]
[Black "Sven_Tica"]
[Result "0-1"]
[WhiteElo "1985"]
[BlackElo "2406"]
[TimeControl "180+2"]
[EndTime "13:06:57 PDT"]
[Termination "Sven_Tica won on time"]

1. e4 {[%clk 0:03:01.3]} 1... c6 {[%clk 0:03:00.5]} 2. d4 {[%clk 0:03:00.4]}
2... d5 {[%clk 0:03:01.5]} 3. Nc3 {[%clk 0:03:02]} 3... dxe4 {[%clk 0:03:01]} 4.
Nxe4 {[%clk 0:03:03.9]} 4... Nd7 {[%clk 0:03:02.1]} 5. Nf3 {[%clk 0:03:04.4]}
5... Ngf6 {[%clk 0:03:02.5]} 6. Ng3 {[%clk 0:03:01.8]} 6... g6 {[%clk
0:02:53.5]} 7. Be3 {[%clk 0:02:59.6]} 7... Bg7 {[%clk 0:02:54.3]} 8. Qd2 {[%clk
0:03:01.2]} 8... Nb6 {[%clk 0:02:53.1]} 9. O-O-O {[%clk 0:02:56.1]} 9... Bg4
{[%clk 0:02:45]} 10. h3 {[%clk 0:02:52.4]} 10... Bxf3 {[%clk 0:02:44.4]} 11.
gxf3 {[%clk 0:02:54.3]} 11... Qd5 {[%clk 0:02:44.8]} 12. Kb1 {[%clk 0:02:46.7]}
12... Qxf3 {[%clk 0:02:37.1]} 13. Be2 {[%clk 0:02:41.6]} 13... Qd5 {[%clk
0:02:36.7]} 14. h4 {[%clk 0:02:24.7]} 14... h5 {[%clk 0:02:30.6]} 15. b3 {[%clk
0:02:07]} 15... Ne4 {[%clk 0:02:20.4]} 16. Qd3 {[%clk 0:01:54.2]} 16... Nxg3
{[%clk 0:02:14.8]} 17. fxg3 {[%clk 0:01:56.1]} 17... Rd8 {[%clk 0:02:02.9]} 18.
c4 {[%clk 0:01:39.4]} 18... Qf5 {[%clk 0:01:55.4]} 19. Qxf5 {[%clk 0:01:30.7]}
19... gxf5 {[%clk 0:01:57.3]} 20. Rhf1 {[%clk 0:01:28.5]} 20... e6 {[%clk
0:01:57.7]} 21. a4 {[%clk 0:01:27.2]} 21... Nc8 {[%clk 0:01:45.8]} 22. Rd3
{[%clk 0:01:08.1]} 22... Nd6 {[%clk 0:01:41]} 23. Rfd1 {[%clk 0:00:03.6]} 23...
Ne4 {[%clk 0:01:40.8]} 24. Bf3 {[%clk 0:00:04.4]} 24... Bh6 {[%clk 0:01:26.6]}
25. Bf4 {[%clk 0:00:06.3]} 25... Bxf4 {[%clk 0:01:25.5]} 0-1

[Event "*** MasterClass Titled Tuesday Blitz"]
[Site "Chess.com"]
[Date "2017.08.01"]
[Round "1"]
[White "jcibarra"]
[Black "michaelk123"]
[Result "1-0"]
[WhiteElo "2664"]
[BlackElo "2346"]
[TimeControl "180+2"]
[EndTime "13:06:59 PDT"]
[Termination "jcibarra won by checkmate"]

1. e4 {[%clk 0:02:56.9]} 1... c5 {[%clk 0:03:00.6]} 2. Nf3 {[%clk 0:02:54.7]}
2... e6 {[%clk 0:03:01.7]} 3. d4 {[%clk 0:02:56.1]} 3... cxd4 {[%clk 0:03:03.3]}
4. Nxd4 {[%clk 0:02:58]} 4... Nc6 {[%clk 0:03:04.9]} 5. Nc3 {[%clk 0:02:58.6]}
5... Qc7 {[%clk 0:03:05.9]} 6. g3 {[%clk 0:03:00.2]} 6... a6 {[%clk 0:03:06.4]}
7. Bg2 {[%clk 0:03:01.4]} 7... Nf6 {[%clk 0:03:06.8]} 8. O-O {[%clk 0:03:02.8]}
8... Nxd4 {[%clk 0:03:07.4]} 9. Qxd4 {[%clk 0:03:03.7]} 9... Bc5 {[%clk
0:03:09]} 10. Bf4 {[%clk 0:03:04.5]} 10... d6 {[%clk 0:03:08.6]} 11. Qd2 {[%clk
0:03:06]} 11... h6 {[%clk 0:03:08.9]} 12. Rad1 {[%clk 0:03:06.1]} 12... e5
{[%clk 0:03:09.3]} 13. Be3 {[%clk 0:03:07.6]} 13... Bg4 {[%clk 0:03:01]} 14.
Bxc5 {[%clk 0:03:06.9]} 14... dxc5 {[%clk 0:02:58.1]} 15. f3 {[%clk 0:03:08.3]}
15... Be6 {[%clk 0:02:58.3]} 16. Nd5 {[%clk 0:03:09.6]} 16... Bxd5 {[%clk
0:02:59.3]} 17. exd5 {[%clk 0:03:11]} 17... Qd6 {[%clk 0:03:00.5]} 18. f4 {[%clk
0:03:11.4]} 18... O-O {[%clk 0:03:01.5]} 19. fxe5 {[%clk 0:03:12.3]} 19... Qxe5
{[%clk 0:03:03.4]} 20. d6 {[%clk 0:03:14.2]} 20... Qxb2 {[%clk 0:02:54.5]} 21.
c4 {[%clk 0:03:14.8]} 21... Qxd2 {[%clk 0:02:23]} 22. Rxd2 {[%clk 0:03:16.7]}
22... Rab8 {[%clk 0:02:13.9]} 23. a4 {[%clk 0:03:17.7]} 23... Rfd8 {[%clk
0:01:03.4]} 24. Rb1 {[%clk 0:03:17.9]} 24... b6 {[%clk 0:00:56]} 25. Bc6 {[%clk
0:03:18.7]} 25... Kf8 {[%clk 0:00:52.3]} 26. Re1 {[%clk 0:03:20]} 26... Ne8
{[%clk 0:00:24.7]} 27. d7 {[%clk 0:03:12.5]} 27... Nf6 {[%clk 0:00:24.7]} 28.
Rd6 {[%clk 0:03:12.7]} 28... h5 {[%clk 0:00:14.4]} 29. h3 {[%clk 0:03:02.2]}
29... Kg8 {[%clk 0:00:09.1]} 30. Kg2 {[%clk 0:03:00.4]} 30... Kf8 {[%clk
0:00:06.9]} 31. Kf3 {[%clk 0:03:01.5]} 31... Kg8 {[%clk 0:00:07.5]} 32. Kf4
{[%clk 0:03:03]} 32... Kf8 {[%clk 0:00:08.8]} 33. Kf5 {[%clk 0:03:03.5]} 33...
Kg8 {[%clk 0:00:09.5]} 34. Rxf6 {[%clk 0:02:47.1]} 34... gxf6 {[%clk 0:00:09.7]}
35. Kxf6 {[%clk 0:02:49]} 35... Kf8 {[%clk 0:00:09.1]} 36. Re5 {[%clk
0:02:48.6]} 36... b5 {[%clk 0:00:08.4]} 37. cxb5 {[%clk 0:02:43.8]} 37... axb5
{[%clk 0:00:05.2]} 38. axb5 {[%clk 0:02:43.4]} 38... c4 {[%clk 0:00:04.3]} 39.
Rxh5 {[%clk 0:02:42.8]} 39... Kg8 {[%clk 0:00:04.9]} 40. Rc5 {[%clk 0:02:40.1]}
40... Rb6 {[%clk 0:00:05.3]} 41. Ke7 {[%clk 0:02:40.2]} 41... Rbb8 {[%clk
0:00:04.9]} 42. Rxc4 {[%clk 0:02:41.6]} 42... Kg7 {[%clk 0:00:05.4]} 43. Rg4+
{[%clk 0:02:42.3]} 43... Kh6 {[%clk 0:00:05.2]} 44. Kf6 {[%clk 0:02:37.7]} 44...
Kh5 {[%clk 0:00:06]} 45. Rh4# {[%clk 0:02:38.3]} 1-0

[Event "*** MasterClass Titled Tuesday Blitz"]
[Site "Chess.com"]
[Date "2017.08.01"]
[Round "1"]
[White "Bad4life"]
[Black "biostatistician"]
[Result "0-1"]
[WhiteElo "2167"]
[BlackElo "2466"]
[TimeControl "180+2"]
[EndTime "13:07:00 PDT"]
[Termination "biostatistician won by checkmate"]

1. e4 {[%clk 0:03:01.9]} 1... e6 {[%clk 0:02:59.6]} 2. d4 {[%clk 0:03:02.3]}
2... d5 {[%clk 0:03:01.5]} 3. Nd2 {[%clk 0:03:03.6]} 3... Nc6 {[%clk 0:03:01.8]}
4. Ngf3 {[%clk 0:03:02.6]} 4... Nf6 {[%clk 0:03:02.8]} 5. e5 {[%clk 0:03:04.2]}
5... Ne4 {[%clk 0:03:04.2]} 6. c3 {[%clk 0:03:02.1]} 6... Nxd2 {[%clk
0:03:04.8]} 7. Bxd2 {[%clk 0:03:02.2]} 7... Be7 {[%clk 0:03:06.7]} 8. Bd3 {[%clk
0:03:03.4]} 8... b6 {[%clk 0:03:06]} 9. Qc2 {[%clk 0:03:03]} 9... h6 {[%clk
0:03:05.9]} 10. h4 {[%clk 0:03:01.7]} 10... Bb7 {[%clk 0:03:05.4]} 11. Rh3
{[%clk 0:03:02.6]} 11... Qd7 {[%clk 0:02:59.8]} 12. Rg3 {[%clk 0:02:59.7]} 12...
g6 {[%clk 0:03:00]} 13. Bxg6 {[%clk 0:02:53.8]} 13... fxg6 {[%clk 0:03:01.9]}
14. Qxg6+ {[%clk 0:02:54.8]} 14... Kd8 {[%clk 0:03:03.3]} 15. Qg7 {[%clk
0:02:55.2]} 15... Re8 {[%clk 0:02:58.2]} 16. Bxh6 {[%clk 0:02:53.6]} 16... Kc8
{[%clk 0:02:57.3]} 17. h5 {[%clk 0:02:46.2]} 17... Ba6 {[%clk 0:02:51.8]} 18.
O-O-O {[%clk 0:02:40.1]} 18... Kb7 {[%clk 0:02:51.1]} 19. Be3 {[%clk 0:02:31.8]}
19... Na5 {[%clk 0:02:46]} 20. Rg6 {[%clk 0:02:25]} 20... Qa4 {[%clk 0:02:44.8]}
21. Rxe6 {[%clk 0:01:59.8]} 21... Bf8 {[%clk 0:01:51.9]} 22. Qg6 {[%clk
0:01:40.8]} 22... Qxa2 {[%clk 0:01:09.4]} 23. Rxe8 {[%clk 0:01:29.9]} 23... Rxe8
{[%clk 0:01:06.5]} 24. Qxe8 {[%clk 0:01:19.3]} 24... Nc4 {[%clk 0:01:05.7]} 25.
Rd2 {[%clk 0:00:44.1]} 25... Qa1+ {[%clk 0:01:06.1]} 26. Kc2 {[%clk 0:00:45.6]}
26... Qxb2+ {[%clk 0:01:05.6]} 27. Kd1 {[%clk 0:00:43]} 27... Qb1+ {[%clk
0:01:05.3]} 28. Ke2 {[%clk 0:00:43.7]} 28... Nxe5+ {[%clk 0:01:02.2]} 29. c4
{[%clk 0:00:25.8]} 29... Bxc4+ {[%clk 0:01:01.8]} 30. Rd3 {[%clk 0:00:25.9]}
30... Qxd3+ {[%clk 0:01:00.3]} 31. Ke1 {[%clk 0:00:27.4]} 31... Qe2# {[%clk
0:01:01.1]} 0-1

[Event "*** MasterClass Titled Tuesday Blitz"]
[Site "Chess.com"]
[Date "2017.08.01"]
[Round "1"]
[White "DrVelja"]
[Black "Sharafiev_Azat"]
[Result "1-0"]
[WhiteElo "2528"]
[BlackElo "2262"]
[TimeControl "180+2"]
[EndTime "13:07:03 PDT"]
[Termination "DrVelja won on time"]

1. e4 {[%clk 0:03:01.9]} 1... d6 {[%clk 0:03:00.4]} 2. d4 {[%clk 0:03:02.2]}
2... Nf6 {[%clk 0:02:59.2]} 3. Nc3 {[%clk 0:03:03.5]} 3... e5 {[%clk 0:03:00.3]}
4. Nf3 {[%clk 0:03:04.6]} 4... Nbd7 {[%clk 0:03:00.7]} 5. g4 {[%clk 0:03:05.9]}
5... Nxg4 {[%clk 0:02:59.4]} 6. Rg1 {[%clk 0:03:07.4]} 6... Ngf6 {[%clk
0:02:59.1]} 7. Be3 {[%clk 0:03:08.8]} 7... c6 {[%clk 0:02:59.1]} 8. Qd2 {[%clk
0:03:09.6]} 8... Qc7 {[%clk 0:02:57.6]} 9. O-O-O {[%clk 0:03:09.4]} 9... b5
{[%clk 0:02:58.7]} 10. d5 {[%clk 0:02:48.9]} 10... b4 {[%clk 0:02:55.2]} 11. Ne2
{[%clk 0:02:37.8]} 11... Nxe4 {[%clk 0:02:44.7]} 12. Qxb4 {[%clk 0:02:35.5]}
12... cxd5 {[%clk 0:02:43.9]} 13. Rxd5 {[%clk 0:02:34.7]} 13... Ndf6 {[%clk
0:02:44.1]} 14. Rd1 {[%clk 0:02:32.9]} 14... d5 {[%clk 0:02:44.8]} 15. Qe1
{[%clk 0:02:14.8]} 15... d4 {[%clk 0:02:27.9]} 16. Nexd4 {[%clk 0:01:59.5]}
16... exd4 {[%clk 0:02:28]} 17. Bxd4 {[%clk 0:02:00.5]} 17... Qf4+ {[%clk
0:02:28.7]} 18. Kb1 {[%clk 0:01:40.7]} 18... Qxf3 {[%clk 0:02:16]} 19. Bg2
{[%clk 0:01:27.1]} 19... Qf4 {[%clk 0:01:20.6]} 20. Bxf6 {[%clk 0:01:23.4]}
20... Bb7 {[%clk 0:01:20.5]} 21. Rd4 {[%clk 0:01:15.3]} 21... gxf6 {[%clk
0:00:32.2]} 22. Bxe4 {[%clk 0:01:05.1]} 22... Qe5 {[%clk 0:00:10.1]} 23. Bxb7
{[%clk 0:00:54.9]} 1-0